fUSD/lending_fUSD_20240520
["ID","MTS","AMOUNT","RATE_DAILY","PERIOD"]
[327530566,1716172232213,-339.7200004,0.00010347,2]
[327530567,1716172232224,-2868.15296148,0.00010347,2]
[327530568,1716172232235,-5792.33143784,0.00010347,2]
[327530569,1716172232246,-25595.61049625,0.00010347,2]
[327530570,1716172232255,-272.27064991,0.00010413,2]
[327530571,1716172232264,-996.27284007,0.00010413,2]
[327530572,1716172232274,-1643.64707164,0.0001049,2]
[327530573,1716172232284,-499.99,0.0001049,2]
[327530574,1716172232293,-155.0,0.00010498,2]
[327530575,1716172232302,-171.3310329,0.00010499,2]
[327530576,1716172232311,-2379.26451166,0.000105,2]
[327530577,1716172232323,-4386.35969042,0.000105,2]
[327530578,1716172232334,-6900.0,0.000105,2]
[327530579,1716172232389,-1558.6251952,0.000105,2]
[327530580,1716172232401,-507.97806088,0.000105,2]
[327530581,1716172232412,-432.92,0.000105,2]
[327530582,1716172232423,-76518.3439157,0.000105,2]
[327530599,1716172238337,-158.04094424,0.00010413,2]
[327530600,1716172238347,-1890306.24563534,0.000105,2]
[327530601,1716172238356,-187.28,0.00010513,2]
[327530602,1716172238366,-157.89,0.00010576,2]
[327530603,1716172238375,-498.69,0.0001059,2]
[327530604,1716172238385,-157.89,0.00010609,2]
[327530605,1716172238394,-299.99,0.00010609,2]
[327530606,1716172238403,-6995.01,0.00010609,2]
[327530607,1716172238412,-4463.12,0.0001064,2]
[327530608,1716172238422,-157.89,0.00010641,2]
[327530609,1716172238432,-157.89,0.00010674,2]
[327530610,1716172238442,-157.89,0.00010706,2]
[327530611,1716172238451,-1643.64707154,0.00010709,2]
[327530612,1716172238461,-250.0,0.00010726,2]
[327530613,1716172238470,-600.0,0.00010728,2]
[327530614,1716172238479,-157.89,0.00010739,2]
[327530615,1716172238489,-157.89,0.00010771,2]
[327530616,1716172238498,-157.89,0.00010803,2]
[327530617,1716172238508,-250.0,0.00010829,2]
[327530618,1716172238517,-157.89,0.00010836,2]
[327530619,1716172238526,-157.89,0.00010868,2]
[327530620,1716172238535,-157.89,0.00010901,2]
[327530621,1716172238544,-1643.64707154,0.00010928,2]
[327530622,1716172238554,-157.89,0.00010933,2]
[327530623,1716172238564,-156.12407296,0.00010945,2]
[327530624,1716172238573,-7527.8013056,0.00010946,2]
[327530625,1716172238584,-178.15,0.00010959,2]
[327530626,1716172238593,-176.02,0.00010959,2]
[327530627,1716172238602,-150.0,0.00010959,2]
[327530628,1716172238611,-880.15,0.00010959,2]
[327530629,1716172238621,-7571.89,0.00010959,2]
[327530630,1716172238630,-157.89,0.00010965,2]
[327530631,1716172238639,-157.89,0.00010998,2]
[327530632,1716172238649,-150.20476875,0.00011,2]
[327530633,1716172238658,-157.89,0.0001103,2]
[327530634,1716172238667,-272.27064991,0.00011035,2]
[327530635,1716172238676,-157.89,0.00011063,2]
[327530636,1716172238685,-157.89,0.00011095,2]
[327530637,1716172238695,-176.73,0.00011112,2]
[327530638,1716172238704,-157.89,0.00011127,2]
[327530639,1716172238713,-1643.64707154,0.00011147,2]
[327530640,1716172238723,-5344.91,0.00011333,2]
[327530641,1716172238731,-1643.64707154,0.00011366,2]
[327530642,1716172238741,-1643.64707154,0.00011585,2]
[327530643,1716172238750,-272.27064991,0.00011657,2]
[327530644,1716172238759,-383.76,0.00011679,2]
[327530645,1716172238769,-2327.83056448,0.00011697,2]
[327530646,1716172238779,-753.57711381,0.00011698,2]
[327530647,1716172238788,-156.87,0.00011715,2]
[327530648,1716172238798,-223.38,0.00011715,2]
[327530649,1716172238807,-156.87,0.00011727,2]
[327530650,1716172238816,-156.87,0.00011738,2]
[327530651,1716172238825,-156.87,0.0001175,2]
[327530652,1716172238835,-156.87,0.00011762,2]
[327530653,1716172238844,-156.87,0.00011774,2]
[327530654,1716172238853,-1643.64707154,0.00011805,2]
[327530655,1716172238862,-159.94,0.00011899,2]
[327530656,1716172238872,-800.0,0.00011945,2]
[327530657,1716172238881,-400.0,0.00011973,2]
[327530658,1716172238890,-1643.64707154,0.00012024,2]
[327530659,1716172238899,-167.97,0.00012033,2]
[327530660,1716172238908,-600.0,0.00012069,2]
[327530661,1716172238917,-869.61,0.00012082,2]
[327530662,1716172238926,-869.61,0.00012082,2]
[327530663,1716172238936,-195.8,0.00012082,2]
[327530664,1716172238945,-289.9983,0.00012148,2]
[327530665,1716172238953,-1643.64707154,0.00012243,2]
[327530666,1716172238962,-39176.0127,0.00012248,2]
[327530667,1716172238972,-609.846,0.00012248,2]
[327530668,1716172238981,-100000.0,0.00012248,2]
[327530669,1716172238990,-500.0,0.00012248,2]
[327530670,1716172238999,-272.27064991,0.00012278,2]
[327530671,1716172239008,-301.06,0.00012356,2]
[327530672,1716172239018,-2880.86,0.00012431,2]
[327530673,1716172239028,-1643.64707154,0.00012462,2]
[327530674,1716172239038,-10475.1723,0.00012573,2]
[327530675,1716172239048,-24953.3418,0.00012573,2]
[327530676,1716172239057,-1643.64707154,0.00012681,2]
[327530677,1716172239066,-1585.88936503,0.00012823,2]
[327530678,1716172239078,-12656.14528773,0.0001285,2]
[327530679,1716172239213,-252.30363368,0.00012866,2]
[327530681,1716172239223,-1643.64707154,0.000129,2]
[327530683,1716172239232,-272.27064991,0.000129,2]
[327530684,1716172239242,-269.06432757,0.000129,2]
[327530685,1716172239252,-150.67,0.0001299,2]
[327530686,1716172239261,-150.67,0.0001299,2]
[327530687,1716172239270,-150.67,0.0001299,2]
[327530688,1716172239280,-150.20476875,0.0001299,2]
[327530689,1716172239289,-150.67,0.0001299,2]
[327530690,1716172239298,-150.67,0.0001299,2]
[327530691,1716172239308,-150.67,0.0001299,2]
[327530692,1716172239317,-150.67,0.0001299,2]
[327530693,1716172239328,-150.67,0.0001299,2]
[327530694,1716172239337,-155.0,0.00012996,2]
[327530695,1716172239347,-410.06659556,0.00012997,2]
[327530696,1716172239356,-157.052011,0.00012997,2]
[327530697,1716172239366,-157.052011,0.00012997,2]
[327530698,1716172239376,-157.052011,0.00012997,2]
[327530699,1716172239385,-157.052011,0.00012998,2]
[327530700,1716172239395,-157.052011,0.00012998,2]
[327530701,1716172239404,-157.052011,0.00012998,2]
[327530702,1716172239415,-157.052011,0.00012998,2]
[327530703,1716172239424,-157.052011,0.00012998,2]
[327530704,1716172239433,-194.93537207,0.00012999,2]
[327530705,1716172239443,-598.22617371,0.00012999,5]
[327530706,1716172239453,-806.76083881,0.00012999,2]
[327530707,1716172239463,-1000.0,0.00012999,2]
[327530708,1716172239474,-1056126.88784635,0.00013,2]
[327530711,1716172239720,-384117.3900669,0.00013,2]
[327530744,1716172240288,-2001.368,0.00013,2]
[327530746,1716172240300,-2231.57184507,0.00013,2]
[327530849,1716172243940,-158.04094423,0.00011657,2]
[327530850,1716172243950,-842.47405577,0.00013,2]
[327530871,1716172246025,-4161.50812744,0.00013,2]
[327530879,1716172246351,-6480.31342171,0.00013,2]
[327530880,1716172472357,10469.64371101,6.94e-05,2]
[327530881,1716172519260,17630.35628899,6.94e-05,2]
[327530882,1716172519285,2099.80388475,6.94e-05,2]
[327530883,1716172521248,234193.87031441,6.94e-05,2]
[327530884,1716172521276,313411.82535956,6.94e-05,2]
[327530885,1716172521802,560.8967205,6.94e-05,2]
[327530886,1716172523769,20219.84291804,6.94e-05,2]
[327530887,1716172535260,45942.64124962,6.94e-05,2]
[327530888,1716172535287,377557.54948798,6.94e-05,2]
[327530889,1716172539814,452.69652316,6.94e-05,2]
[327530890,1716172541257,11989.75398886,6.94e-05,2]
[327530891,1716172541281,7740.40618488,6.94e-05,2]
[327530892,1716172541749,458.80851512,6.94e-05,2]
[327530893,1716172819011,194.24,0.00024329,30]
[327530918,1716173432329,-528.75220813,6.94e-05,2]
[327530919,1716173432339,-178.25,9.209e-05,2]
[327530920,1716173432348,-365.59,9.649e-05,2]
[327530921,1716173432357,-244.07480737,9.75e-05,2]
[327530922,1716173432366,-1424.5634665,0.0001118,2]
[327530923,1716173432377,-460.43123519,0.0001118,2]
[327530924,1716173432388,-6752.20015266,0.0001118,2]
[327530925,1716173432398,-250.0,0.00011451,2]
[327530926,1716173432407,-178.7,0.00011512,2]
[327530927,1716173432417,-959.61,0.00011537,2]
[327530928,1716173432426,-4869.6372,0.00011556,2]
[327530929,1716173432436,-847.26,0.00011556,2]
[327530930,1716173432445,-159.94,0.00011633,2]
[327530931,1716173432455,-2605.68390183,0.00011667,2]
[327530932,1716173432464,-365.59,0.00011913,2]
[327530933,1716173432473,-1000.0,0.00012715,2]
[327530934,1716173432482,-12656.14528773,0.0001285,2]
[327530935,1716173432492,-175.03202771,0.00012869,2]
[327530936,1716173432505,-200.0,0.00012896,2]
[327530937,1716173432514,-500.0,0.00012896,2]
[327530938,1716173432523,-158.04094423,0.000129,2]
[327530939,1716173432534,-174.81284913,0.000129,2]
[327530940,1716173432544,-357.41805467,0.000129,2]
[327530941,1716173432553,-3903.26325173,0.000129,2]
[327530942,1716173432563,-208.16552029,0.000129,2]
[327530943,1716173432574,-178.7,0.00012951,2]
[327530945,1716173432583,-800.0,0.00012986,2]
[327530946,1716173432592,-157.052011,0.00012997,2]
[327530948,1716173432602,-157.052011,0.00012997,2]
[327530950,1716173432611,-157.052011,0.00012997,2]
[327530951,1716173432620,-157.052011,0.00012997,2]
[327530952,1716173432629,-157.052011,0.00012997,2]
[327530953,1716173432639,-155.0,0.00012998,2]
[327530954,1716173432647,-155.36153274,0.00012998,2]
[327530955,1716173432657,-157.052011,0.00012998,2]
[327530956,1716173432668,-157.052011,0.00012998,2]
[327530957,1716173432677,-157.052011,0.00012998,2]
[327530958,1716173432687,-157.052011,0.00012998,2]
[327530959,1716173432696,-157.052011,0.00012998,2]
[327530960,1716173432705,-725.24577665,0.00012999,2]
[327530961,1716173432715,-1000.0,0.00012999,2]
[327530962,1716173432723,-20300.21973123,0.00013,2]
[327530963,1716173432736,-459.488712,0.00013,2]
[327530964,1716173432747,-385.01912969,0.00013,2]
[327530965,1716173432758,-113476.02179765,0.00013,2]
[327530966,1716173432771,-19555.12986902,0.00013,2]
[327530967,1716173432783,-760.55939495,0.00013,2]
[327530968,1716173432795,-614.7279758,0.00013,2]
[327530969,1716173432806,-428.101543,0.00013,2]
[327530970,1716173432817,-4321.14263448,0.00013,2]
[327530971,1716173432828,-725.14732229,0.00013,2]
[327530972,1716173432979,-6271.32552108,0.00013,2]
[327530973,1716173432991,-308865.72670443,0.00013,2]
[327530974,1716173433001,-29971.41731377,0.00013,2]
[327530975,1716173433013,-209207.08242422,0.00013,2]
[327530976,1716173433024,-625.3983,0.00013,2]
[327530977,1716173433035,-54402.93726456,0.00013,2]
[327530978,1716173433046,-1372.00002,0.00013,2]
[327530979,1716173433057,-1923.82744863,0.00013,2]
[327530980,1716173433068,-658.25,0.00013,2]
[327530981,1716173433079,-465.97178269,0.00013,2]
[327530982,1716173433090,-60092.82223061,0.00013,2]
[327530984,1716173438961,-785.60005,0.00013,2]
[327530985,1716173438974,-722.68162608,0.00013,2]
[327530986,1716173438985,-384117.3900669,0.00013,2]
[327530988,1716173438996,-1015.1703867,0.00013,2]
[327530990,1716173439008,-2084.0327375,0.00013,2]
[327530993,1716173439019,-2007.98320904,0.00013,2]
[327530995,1716173439032,-2586.70432895,0.00013,2]
[327531004,1716173439275,-1473.80712133,0.00013,2]
[327531005,1716173439287,-50007.06452374,0.00013,2]
[327531066,1716173440578,-2425.10736042,0.00013,2]
[327531086,1716173440873,-7523.63457508,0.00013,2]
[327531087,1716173440885,-2164.50499999,0.00013,2]
[327531088,1716173440896,-658.16552029,0.00013,2]
[327531089,1716173440908,-3464.1329812,0.00013,2]
[327531090,1716173440942,-443.43736833,0.00013,2]
[327531095,1716173443560,-1245.4,0.00013,2]
[327531097,1716173443950,-562.58518213,0.00013,2]
[327531139,1716173449050,-365.99288003,0.00012999,2]
[327531140,1716173514219,178.05,0.00024329,30]
[327531142,1716173691232,970.57365937,0.00024329,90]
[327531143,1716173709160,855.30441125,0.00024329,90]
[327531144,1716173995467,163.21,0.00024329,30]
[327531145,1716174272028,200.33666409,0.0003,120]
[327531146,1716174497001,163.21,0.00024329,30]
[327531150,1716174632451,-155.0,9.412e-05,2]
[327531152,1716174632462,-181.46,9.417e-05,2]
[327531153,1716174632471,-27.72813852,9.443e-05,2]
[327531155,1716174632483,-142.95186148,9.443e-05,2]
[327531159,1716174632494,-527.53,0.00010159,2]
[327531161,1716174632503,-416.62714169,0.000108,2]
[327531166,1716174632515,-1970.37285831,0.000108,2]
[327531168,1716174632524,-486.46,0.00010959,2]
[327531170,1716174632534,-545.40347445,0.00011854,2]
[327531171,1716174632545,-300.68652555,0.00011854,2]
[327531172,1716174632555,-250.0,0.00011865,2]
[327531173,1716174632564,-295.32,0.00011865,2]
[327531174,1716174632573,-150.0,0.00011999,2]
[327531175,1716174632582,-150.0,0.00011999,2]
[327531176,1716174632591,-499.99,0.00011999,2]
[327531177,1716174632600,-7667.21945164,0.00012,2]
[327531178,1716174632611,-8542.89999,0.00012,2]
[327531179,1716174632623,-3423.34066338,0.00012,2]
[327531180,1716174632632,-1301.56671438,0.00012348,2]
[327531181,1716174632641,-313.83474584,0.00012348,2]
[327531182,1716174632651,-527.53,0.00012423,2]
[327531183,1716174632659,-3199.70218951,0.00012798,2]
[327531184,1716174632770,-383.22221049,0.00012798,2]
[327531185,1716174632779,-1442.61188279,0.000128,2]
[327531186,1716174632790,-1057.38811721,0.000128,2]
[327531187,1716174632799,-157.55023975,0.00012869,2]
[327531188,1716174632810,-17.48178796,0.00012869,2]
[327531189,1716174632819,-4107.40876478,0.00012869,2]
[327531190,1716174632830,-461.68774918,0.00012869,2]
[327531191,1716174632842,-664.03948097,0.00012869,2]
[327531192,1716174632855,-2216.04602153,0.00012869,2]
[327531193,1716174632867,-2291.30000015,0.00012869,2]
[327531194,1716174632877,-962.47257914,0.00012869,2]
[327531199,1716174638491,-155.0,9.411e-05,2]
[327531202,1716174638502,-1953.19069198,0.00012869,2]
[327531206,1716174638512,-3000.0,0.0001287,2]
[327531208,1716174638522,-967.15749932,0.00012889,2]
[327531210,1716174638531,-967.15749928,0.00012889,2]
[327531212,1716174638541,-241.01336793,0.00012889,2]
[327531213,1716174638554,-726.14413135,0.00012889,2]
[327531214,1716174638563,-967.15749928,0.00012889,2]
[327531215,1716174638573,-967.15749928,0.00012889,2]
[327531216,1716174638583,-967.15749928,0.00012889,2]
[327531217,1716174638592,-967.15749928,0.00012889,2]
[327531218,1716174638601,-967.15749928,0.00012889,2]
[327531219,1716174638611,-967.15749928,0.00012889,2]
[327531220,1716174638620,-500.0,0.00012896,2]
[327531221,1716174638630,-391.63457616,0.00012898,2]
[327531222,1716174638640,-347.41469681,0.00012898,2]
[327531223,1716174638653,-897.5730635,0.00012898,2]
[327531224,1716174638662,-534.27931704,0.00012898,2]
[327531225,1716174638671,-2751.46221825,0.00012898,2]
[327531226,1716174638680,-2751.46221818,0.00012898,2]
[327531227,1716174638689,-211.51698303,0.00012898,2]
[327531228,1716174638701,-2539.94523515,0.00012898,2]
[327531229,1716174638711,-2751.46221818,0.00012898,2]
[327531230,1716174638721,-2751.46221818,0.00012898,2]
[327531231,1716174638730,-2751.46221818,0.00012898,2]
[327531232,1716174638739,-2751.46221818,0.00012898,2]
[327531233,1716174638749,-2751.46221818,0.00012898,2]
[327531234,1716174638758,-1964.39437573,0.00012898,2]
[327531235,1716174638770,-573.2828905,0.00012898,2]
[327531236,1716174638782,-213.78495195,0.00012898,2]
[327531237,1716174638791,-3563.26227983,0.00012898,2]
[327531238,1716174639061,-672.57,0.00012812,2]
[327531239,1716174639085,-327.43,0.00012812,2]
[327531240,1716174639095,-891.25292017,0.00012898,2]
[327531241,1716174639104,-2467.4329,0.00012898,2]
[327531242,1716174639114,-164.0486,0.00012898,2]
[327531243,1716174639124,-2387.174,0.000129,2]
[327531244,1716174639134,-74325.7149,0.000129,2]
[327531245,1716174639143,-2476.5862,0.000129,2]
[327531246,1716174639153,-64326.3176,0.000129,2]
[327531247,1716174639163,-626.3802835,0.000129,2]
[327531248,1716174639172,-13744.40082101,0.000129,2]
[327531249,1716174639182,-2751.46221818,0.000129,2]
[327531250,1716174639192,-7500.0,0.000129,2]
[327531251,1716174639201,-967.15749928,0.000129,2]
[327531252,1716174639211,-208.16552028,0.000129,2]
[327531253,1716174639221,-150.65,0.0001299,2]
[327531254,1716174639230,-150.65,0.0001299,2]
[327531255,1716174639240,-150.65,0.0001299,2]
[327531256,1716174639249,-150.65,0.0001299,2]
[327531257,1716174639259,-150.65,0.0001299,2]
[327531258,1716174639268,-171.11349026,0.0001299,2]
[327531259,1716174639277,-171.11349026,0.0001299,2]
[327531260,1716174639287,-157.052012,0.00012997,2]
[327531261,1716174639296,-157.052012,0.00012997,2]
[327531262,1716174639306,-157.052012,0.00012997,2]
[327531263,1716174639315,-157.052012,0.00012997,2]
[327531264,1716174639324,-155.40131153,0.00012998,2]
[327531265,1716174639334,-2009.63127032,0.00012998,2]
[327531266,1716174639344,-157.052012,0.00012998,2]
[327531267,1716174639353,-157.052012,0.00012998,2]
[327531268,1716174639363,-157.052012,0.00012998,2]
[327531269,1716174639372,-157.052012,0.00012998,2]
[327531270,1716174639382,-157.052012,0.00012998,2]
[327531271,1716174639391,-157.052012,0.00012998,2]
[327531272,1716174639402,-725.24577664,0.00012999,2]
[327531273,1716174639411,-1000.0,0.00012999,2]
[327531274,1716174639421,-1114237.00208778,0.00013,2]
[327531276,1716174639433,-973.51784588,0.00013,2]
[327531277,1716174639444,-603.45575644,0.00013,2]
[327531278,1716174639456,-910.60655848,0.00013,2]
[327531279,1716174639468,-7944.81792,0.00013,2]
[327531280,1716174639480,-17307.53041,0.00013,2]
[327531281,1716174639492,-358.33485164,0.00013,2]
[327531283,1716174640664,-1103.5757024,0.00013,2]
[327531284,1716174640678,-675.61945447,0.00013,2]
[327531285,1716174640691,-1163.68068873,0.00013,2]
[327531286,1716174640780,-339.25813426,0.00013,2]
[327531287,1716174640791,-631.33700009,0.00013,2]
[327531289,1716174641411,-345.59999998,0.00013,2]
[327531290,1716174641423,-46950.5185435,0.00013,2]
[327531291,1716174641434,-617.42097586,0.00013,2]
[327531292,1716174641445,-2130.45563758,0.00013,2]
[327531293,1716174641500,-7225.95188826,0.00013,2]
[327531294,1716174641512,-688.15196471,0.00013,2]
[327531295,1716174641525,-389.72999925,0.00013,2]
[327531296,1716174641538,-680.51216495,0.00013,2]
[327531297,1716174641549,-6699.49894914,0.00013,2]
[327531298,1716174641560,-652.20074213,0.00013,2]
[327531299,1716174641571,-959.199,0.00013,2]
[327531300,1716174641737,-495.28604812,0.00013,2]
[327531301,1716174641748,-505.53116172,0.00013,2]
[327531306,1716174643561,-698.02360047,0.00013,2]
[327531307,1716174643573,-7786.92172431,0.00013,2]
[327531309,1716174643585,-3382.0,0.00013,2]
[327531310,1716174643811,-1066.32182804,0.00013,2]
[327531311,1716174643823,-608355.48555652,0.00013,2]
[327531312,1716174643835,-4540.0,0.00013,2]
[327531313,1716174643846,-17470.53336604,0.00013,2]
[327531314,1716174643858,-489.23716,0.00013,2]
[327531315,1716174643870,-736.37395775,0.00013,2]
[327531316,1716174643882,-1305760.25148304,0.00013,2]
[327531317,1716174643898,-582.270009,0.00013,2]
[327531318,1716174644115,-149561.81203197,0.00013,2]
[327531335,1716174977799,192.79,0.00024329,30]
[327531336,1716175091107,9299.61105877,0.000225,30]
[327531337,1716175493592,176.72,0.00024329,30]
[327531338,1716175530477,480.43574171,0.00025,30]
[327531533,1716175831949,-474.77,9.83e-05,2]
[327531534,1716175831960,-468.12298596,0.000101,2]
[327531535,1716175832271,-319.63706001,0.000101,2]
[327531536,1716175832281,-154.21944574,0.00011579,2]
[327531537,1716175832290,-12.02525011,0.00011673,2]
[327531538,1716175837795,-142.1941956,0.00011673,2]
[327531543,1716175837810,-250.0,0.00011743,2]
[327531546,1716175837820,-171.41,0.00011744,2]
[327531549,1716175837830,-154.21944571,0.00011768,2]
[327531551,1716175837840,-800.0,0.0001179,2]
[327531553,1716175837851,-563.38,0.00011834,2]
[327531555,1716175837861,-154.21944571,0.00011862,2]
[327531557,1716175837871,-154.21944571,0.00011956,2]
[327531559,1716175837881,-154.21944571,0.0001205,2]
[327531562,1716175837891,-474.77,0.00012094,2]
[327531563,1716175837901,-154.21944571,0.00012145,2]
[327531564,1716175837911,-154.21944571,0.00012239,2]
[327531565,1716175837920,-154.21944571,0.00012333,2]
[327531566,1716175837931,-154.21944571,0.00012428,2]
[327531567,1716175837941,-154.21944571,0.00012522,2]
[327531568,1716175837951,-154.21944571,0.00012616,2]
[327531569,1716175837961,-154.21944571,0.0001271,2]
[327531570,1716175837971,-154.21944571,0.00012805,2]
[327531571,1716175837981,-150.0,0.00012849,2]
[327531572,1716175837991,-150.0,0.00012849,2]
[327531573,1716175838000,-12656.14528773,0.00012869,2]
[327531574,1716175838010,-2637.76679,0.0001287,2]
[327531575,1716175838020,-19999.99,0.00012893,2]
[327531576,1716175838030,-4417.99,0.00012893,2]
[327531577,1716175838042,-367.05,0.00012893,2]
[327531578,1716175838052,-13176.25957053,0.00012893,2]
[327531579,1716175838594,-3741.94117691,0.00012893,2]
[327531583,1716175840603,-483.41320482,0.00012893,2]
[327531584,1716175840616,-5874.37604774,0.00012893,2]
[327531585,1716175840625,-500.0,0.00012895,2]
[327531586,1716175840635,-500.0,0.00012896,2]
[327531587,1716175840645,-500.0,0.00012896,2]
[327531588,1716175840655,-154.21944571,0.00012899,2]
[327531589,1716175840665,-200.0,0.00012932,2]
[327531590,1716175840675,-157.052012,0.00012997,2]
[327531591,1716175840685,-157.052012,0.00012997,2]
[327531592,1716175840694,-157.052012,0.00012997,2]
[327531593,1716175840704,-157.052012,0.00012997,2]
[327531594,1716175840714,-68.68664921,0.00012998,2]
[327531595,1716175840726,-3713.07208037,0.00012998,2]
[327531596,1716175840735,-157.052012,0.00012998,2]
[327531597,1716175840745,-157.052012,0.00012998,2]
[327531598,1716175840755,-157.052012,0.00012998,2]
[327531599,1716175840765,-157.052012,0.00012998,2]
[327531600,1716175840776,-157.052012,0.00012998,2]
[327531601,1716175840785,-157.052012,0.00012998,2]
[327531602,1716175840797,-157.052012,0.00012998,2]
[327531603,1716175840807,-155.23200077,0.00012999,2]
[327531604,1716175840817,-3979.55062959,0.00012999,2]
[327531605,1716175840830,-8943.78386462,0.00012999,2]
[327531606,1716175840842,-9077.54866152,0.00012999,2]
[327531607,1716175840853,-8943.84023489,0.00012999,2]
[327531628,1716175843846,-1220.00000001,0.00012999,2]
[327531629,1716175843858,-434.4604038,0.00012999,2]
[327531630,1716175843869,-2267.5,0.00012999,2]
[327531631,1716175843881,-826.25901472,0.00012999,2]
[327531632,1716175843893,-1031.53958,0.00012999,2]
[327531633,1716175843904,-49194.62533478,0.00012999,2]
[327531634,1716175844283,-623.25,0.00012999,2]
[327531636,1716175845773,-1912.9668,0.00012999,2]
[327531637,1716175845784,-382.28943785,0.00012999,2]
[327531638,1716175845796,-778.47164664,0.00012999,2]
[327531639,1716175845807,-7567.08157827,0.00012999,2]
[327531640,1716175845822,-322.9200001,0.00012999,2]
[327531641,1716175845834,-1303.58494265,0.00012999,2]
[327531658,1716175846138,-272.69910537,0.00012999,2]
[327531659,1716175846299,-530.6,0.00012999,2]
[327531660,1716175846311,-1333.14755087,0.00012999,2]
[327531661,1716175846322,-497.75,0.00012999,2]
[327531662,1716175846334,-3730.04859743,0.00012999,2]
[327531663,1716175846345,-20023.10395274,0.00012999,2]
[327531664,1716175974925,161.99,0.00024329,30]
[327531670,1716176429978,161.99,0.00024329,30]
[327531689,1716176940629,161.99,0.00024329,30]
[327531703,1716177031834,-500.0,6.937e-05,2]
[327531704,1716177031846,-25.90822352,6.937e-05,2]
[327531705,1716177031856,-485.43541045,6.938e-05,2]
[327531706,1716177031989,-13.98924223,6.938e-05,2]
[327531707,1716177031999,-586.01075777,6.94e-05,2]
[327531708,1716177032026,-271.2999999,6.94e-05,2]
[327531710,1716177037645,-7988.9968889,6.94e-05,2]
[327531711,1716177037655,-150.0,9.599e-05,2]
[327531712,1716177037668,-435.07,9.601e-05,2]
[327531713,1716177037677,-713.07322149,0.0001,2]
[327531714,1716177037687,-200.29,0.00010959,2]
[327531715,1716177037697,-512.84414561,0.00011,2]
[327531716,1716177037722,-238.21561096,0.00011,2]
[327531717,1716177037732,-7980.98156628,0.0001118,2]
[327531718,1716177037742,-360.0,0.00011322,2]
[327531719,1716177037754,-171.41,0.00011359,2]
[327531720,1716177037765,-374.91,0.00011504,2]
[327531721,1716177037775,-250.0,0.00011507,2]
[327531722,1716177037784,-640.0,0.00011527,2]
[327531723,1716177037794,-178.7,0.00011695,2]
[327531724,1716177037804,-155.63232914,0.00011697,2]
[327531725,1716177037813,-155.33627281,0.00011697,2]
[327531726,1716177037824,-298.06837542,0.000118,2]
[327531727,1716177037836,-1023.5008851,0.000118,2]
[327531728,1716177037847,-358.48667185,0.000118,2]
[327531729,1716177037872,-361.675,0.000118,2]
[327531731,1716177038082,-1111.24411073,0.000118,2]
[327531732,1716177038093,-3791.68408224,0.000118,2]
[327531733,1716177038105,-515.29338044,0.000118,2]
[327531735,1716177039813,-485.51692829,0.000118,2]
[327531736,1716177039871,-439.015,0.000118,2]
[327531737,1716177039882,-343.90539421,0.000118,2]
[327531738,1716177040018,-435.07,0.00011865,2]
[327531739,1716177040036,-400.0,0.000121,4]
[327531740,1716177040046,-800.0,0.000122,4]
[327531741,1716177040055,-1021.94984755,0.000123,4]
[327531742,1716177040079,-278.05015245,0.000123,4]
[327531743,1716177040089,-189.64984755,0.000124,4]
[327531744,1716177040100,-1056.30866559,0.000124,4]
[327531745,1716177040111,-317.43691383,0.000124,4]
[327531746,1716177040215,-136.60457303,0.000124,4]
[327531747,1716177040224,-113.79599067,0.000125,4]
[327531748,1716177040272,-1886.32148733,0.000125,4]
[327531749,1716177040284,-199.882522,0.000125,4]
[327531750,1716177040294,-400.0,0.000126,4]
[327531751,1716177040303,-1382.0,0.000127,2]
[327531752,1716177040313,-1005.0,0.000127,2]
[327531753,1716177040324,-400.0,0.000127,4]